fUSD/lending_fUSD_20260111
["ID","MTS","AMOUNT","RATE_DAILY","PERIOD"]
[401376871,1768167040042,-500.0,0.00015424,2]
[401376874,1768167040055,-500.0,0.00015424,2]
[401376876,1768167040068,-500.0,0.00015424,2]
[401376878,1768167040081,-500.0,0.00015424,2]
[401376881,1768167040095,-500.0,0.00015424,2]
[401376883,1768167040107,-500.0,0.00015424,2]
[401376886,1768167040121,-500.0,0.00015424,2]
[401376888,1768167040135,-500.0,0.00015424,2]
[401376890,1768167040148,-500.0,0.00015424,2]
[401376893,1768167040161,-500.0,0.00015424,2]
[401376895,1768167040174,-500.0,0.00015424,2]
[401376898,1768167040187,-500.0,0.00015424,2]
[401376900,1768167040201,-500.0,0.00015424,2]
[401376902,1768167040213,-500.0,0.00015424,2]
[401376905,1768167040225,-500.0,0.00015424,2]
[401376907,1768167040237,-178.26,0.00015424,2]
[401376909,1768167040249,-500.0,0.00015424,2]
[401376912,1768167040261,-500.0,0.00015424,2]
[401376914,1768167040273,-500.0,0.00015424,2]
[401376916,1768167040285,-500.0,0.00015424,2]
[401376919,1768167040298,-500.0,0.00015424,2]
[401376921,1768167040310,-500.0,0.00015424,2]
[401376923,1768167040322,-500.0,0.00015424,2]
[401376926,1768167040333,-500.0,0.00015424,2]
[401376930,1768167040345,-398.9473792,0.00015424,2]
[401376932,1768167040358,-500.0,0.00015424,2]
[401376935,1768167040370,-500.0,0.00015424,2]
[401376938,1768167040382,-500.0,0.00015424,2]
[401376940,1768167040394,-500.0,0.00015424,2]
[401376942,1768167040405,-500.0,0.00015424,2]
[401376944,1768167040417,-386.65632401,0.00015424,2]
[401376947,1768167040428,-11615.071,0.00015425,2]
[401376949,1768167040440,-420.0,0.00015456,2]
[401376951,1768167040452,-250.0,0.00015492,2]
[401376953,1768167040464,-195.0,0.00015492,2]
[401376956,1768167040475,-600.0,0.00015492,2]
[401376958,1768167040486,-195.0,0.000155,2]
[401376960,1768167040498,-255.0,0.00015512,2]
[401376963,1768167040511,-1680.0,0.0001552,2]
[401376965,1768167040522,-500.0,0.00015524,2]
[401376968,1768167040538,-500.0,0.00015524,2]
[401376970,1768167040550,-500.0,0.00015524,2]
[401376972,1768167040563,-484.1427963,0.00015524,2]
[401376974,1768167040574,-500.0,0.00015524,2]
[401376977,1768167040586,-500.0,0.00015524,2]
[401376979,1768167040598,-500.0,0.00015524,2]
[401376981,1768167040611,-500.0,0.00015524,2]
[401376984,1768167040626,-151.0,0.00015583,2]
[401376986,1768167040640,-151.0,0.00015583,2]
[401376988,1768167040652,-1382.78,0.00015598,2]
[401376990,1768167040663,-16485.91631081,0.00015672,2]
[401376992,1768167040675,-15703.44932379,0.00015672,2]
[401376995,1768167040686,-195.0,0.00015679,2]
[401376997,1768167040697,-500.0,0.00015766,2]
[401376999,1768167040708,-500.0,0.00015766,2]
[401377001,1768167040720,-440.38994644,0.0001578,2]
[401377003,1768167040731,-272.27,0.00015783,2]
[401377006,1768167040742,-854.19,0.00015789,2]
[401377008,1768167040754,-332.52083528,0.00015855,2]
[401377010,1768167040765,-200.0,0.00015862,2]
[401377012,1768167040777,-200.0,0.00015862,2]
[401377015,1768167040788,-500.0,0.00015862,2]
[401377017,1768167040799,-1382.78,0.00015872,2]
[401377019,1768167040811,-461.41973841,0.000159,2]
[401377020,1768167040822,-1000.0,0.00015918,2]
[401377021,1768167040833,-16485.91631081,0.0001595,2]
[401377022,1768167040844,-15703.44932379,0.0001595,2]
[401377023,1768167040855,-500.0,0.00015973,2]
[401377024,1768167040867,-30261.31359136,0.00016,2]
[401377025,1768167040879,-179955.10694111,0.00016,4]
[401377026,1768167040894,-852.00000021,0.00016,4]
[401377028,1768167040912,-1056.89806984,0.00016,4]
[401377030,1768167040930,-2913.66801472,0.00016,4]
[401377041,1768167041016,-1267.82664481,0.00016,4]
[401377101,1768167041570,-1.7e-07,0.00016,4]
[401377103,1768167041583,-509.65562623,0.00016,4]
[401377105,1768167041596,-24655.57554343,0.00016,4]
[401377108,1768167041606,-1413.99,0.000161,2]
[401377110,1768167041617,-2102.67,0.00016116,2]
[401377112,1768167041632,-150.99,0.00016116,2]
[401377114,1768167041642,-999.99,0.00016116,2]
[401377116,1768167041653,-9999.99,0.00016116,2]
[401377118,1768167041663,-4800.86,0.00016116,2]
[401377121,1768167041675,-4999.99,0.00016116,2]
[401377123,1768167041686,-9999.99,0.00016116,2]
[401377125,1768167041696,-1162.56948976,0.00016116,2]
[401377127,1768167041709,-1033.83778917,0.00016116,2]
[401377129,1768167041721,-7803.58272107,0.00016116,2]
[401377132,1768167041732,-1382.78,0.00016146,2]
[401377134,1768167041743,-196.21798025,0.000162,2]
[401377136,1768167041753,-150.0,0.000162,2]
[401377138,1768167041763,-150.0,0.000162,2]
[401377140,1768167041774,-150.0,0.000162,2]
[401377142,1768167041784,-223.10788253,0.000162,2]
[401377144,1768167041795,-216.18051254,0.000162,2]
[401377147,1768167041808,-49.75793453,0.000162,2]
[401377149,1768167041818,-150.0,0.000162,2]
[401377151,1768167041829,-231.22039699,0.000162,2]
[401377153,1768167041839,-150.0,0.000162,2]
[401377155,1768167041850,-216.79771002,0.000162,2]
[401377158,1768167041860,-150.0,0.000162,2]
[401377160,1768167041870,-150.0,0.000162,2]
[401377162,1768167041881,-150.0,0.000162,2]
[401377164,1768167041891,-150.0,0.000162,2]
[401377166,1768167041902,-150.0,0.000162,2]
[401377168,1768167041912,-150.0,0.000162,2]
[401377170,1768167041923,-5000.00533254,0.000162,5]
[401377173,1768167041934,-440.38994644,0.00016204,2]
[401377175,1768167041945,-265.93844707,0.00016218,2]
[401377177,1768167041956,-1191.26727917,0.00016229,2]
[401377179,1768167041969,-451.6,0.00016229,2]
[401377182,1768167041982,-1421.76578285,0.00016229,2]
[401377184,1768167041995,-339.17176295,0.00016229,2]
[401377186,1768167042009,-1668.2263106,0.00016229,2]
[401377189,1768167042021,-8950.14768139,0.00016229,2]
[401377191,1768167042034,-2463.73749385,0.00016229,2]
[401377193,1768167042044,-15703.44932379,0.00016229,2]
[401377195,1768167042055,-265.93844707,0.00016236,2]
[401377198,1768167042065,-265.93844707,0.00016255,2]
[401377201,1768167042086,-265.93844707,0.00016273,2]
[401377203,1768167042100,-265.93844707,0.00016291,2]
[401377206,1768167042112,-265.93844707,0.00016309,2]
[401377208,1768167042123,-265.93844707,0.00016327,2]
[401377210,1768167042135,-150.0,0.00016329,2]
[401377212,1768167042146,-200.0,0.0001634,2]
[401377215,1768167042159,-265.93844707,0.00016345,2]
[401377217,1768167042170,-150.0,0.00016364,2]
[401377219,1768167042181,-265.93844707,0.00016364,2]
[401377221,1768167042194,-332.52083528,0.00016367,2]
[401377223,1768167042206,-150.0,0.0001638,2]
[401377226,1768167042217,-265.93844707,0.00016382,2]
[401377228,1768167042229,-265.93844707,0.000164,2]
[401377230,1768167042242,-150.0,0.000164,2]
[401377232,1768167042254,-200.0,0.0001641,2]
[401377235,1768167042265,-200.0,0.0001641,2]
[401377237,1768167042277,-626.22881488,0.0001641,2]
[401377239,1768167042288,-265.93844707,0.00016418,2]
[401377241,1768167042299,-1382.78,0.0001642,2]
[401377244,1768167042311,-150.0,0.00016425,2]
[401377246,1768167042323,-265.93844707,0.00016436,2]
[401377248,1768167042335,-800.0,0.00016438,2]
[401377250,1768167042346,-187.78006525,0.00016438,2]
[401377253,1768167042357,-265.93844707,0.00016455,2]
[401377255,1768167042368,-150.0,0.00016457,2]
[401377257,1768167042380,-150.0,0.00016457,2]
[401377259,1768167042391,-265.93844707,0.00016473,2]
[401377261,1768167042402,-265.93844707,0.00016491,2]
[401377264,1768167042414,-16485.91631081,0.00016507,2]
[401377266,1768167042425,-15703.44932379,0.00016507,2]
[401377268,1768167042436,-265.93844707,0.00016509,2]
[401377270,1768167042449,-1000.0,0.00016515,2]
[401377272,1768167042461,-150.0,0.00016527,2]
[401377275,1768167042471,-265.93844707,0.00016527,2]
[401377277,1768167042484,-265.93844707,0.00016545,2]
[401377279,1768167042495,-150.0,0.0001656,2]
[401377281,1768167042507,-265.93844707,0.00016564,2]
[401377284,1768167042518,-272.27,0.00016572,2]
[401377286,1768167042530,-265.93844707,0.00016582,2]
[401377288,1768167042541,-150.0,0.00016586,2]
[401377290,1768167042552,-265.93844707,0.000166,2]
[401377292,1768167042563,-150.0,0.000166,2]
[401377295,1768167042574,-359.70734215,0.000166,2]
[401377297,1768167042585,-265.93844707,0.00016618,2]
[401377299,1768167042596,-440.38994644,0.00016628,2]
[401377301,1768167042607,-265.93844707,0.00016636,2]
[401377304,1768167042618,-150.0,0.0001665,2]
[401377306,1768167042633,-150.0,0.0001665,2]
[401377308,1768167042644,-265.93844707,0.00016655,2]
[401377309,1768167042655,-265.93844707,0.00016673,2]
[401377310,1768167042666,-150.0,0.00016691,2]
[401377311,1768167042677,-265.93844707,0.00016691,2]
[401377312,1768167042690,-1382.78,0.00016694,2]
[401377314,1768167042701,-265.93844707,0.00016709,2]
[401377316,1768167042712,-159.6,0.00016712,2]
[401377318,1768167042723,-150.0,0.00016714,2]
[401377320,1768167042734,-150.0,0.00016714,2]
[401377322,1768167042745,-433.0,0.00016721,2]
[401377325,1768167042756,-265.93844707,0.00016727,2]
[401377327,1768167042767,-150.0,0.0001674,2]
[401377347,1768167043420,-265.93844707,0.00016745,2]
[401377348,1768167043456,-265.93844707,0.00016764,2]
[401377349,1768167043479,-16744.67998272,0.00016777,2]
[401377350,1768167043492,-265.93844707,0.00016782,2]
[401377351,1768167043502,-16485.91631081,0.00016786,2]
[401377352,1768167043511,-15703.44932379,0.00016786,2]
[401377353,1768167043521,-265.93844707,0.000168,2]
[401377354,1768167043530,-150.0,0.000168,2]
[401377355,1768167043539,-260300.6639379,0.000168,2]
[401377356,1768167043549,-150.0,0.000168,2]
[401377357,1768167043557,-150.0,0.000168,2]
[401377358,1768167043566,-150.0,0.000168,2]
[401377359,1768167043575,-1000.0,0.00016807,2]
[401377360,1768167043584,-1000.0,0.00016808,2]
[401377361,1768167043594,-265.93844707,0.00016818,2]
[401377362,1768167043603,-265.93844707,0.00016836,2]
[401377363,1768167043613,-150.0,0.00016843,2]
[401377364,1768167043624,-150.0,0.00016855,2]
[401377365,1768167043635,-265.93844707,0.00016855,2]
[401377366,1768167043645,-265.93844707,0.00016873,2]
[401377367,1768167043655,-150.0,0.00016875,2]
[401377368,1768167043664,-265.93844707,0.00016891,2]
[401377369,1768167043674,-30000.0,0.000169,6]
[401377371,1768167043684,-500.0,0.00016903,2]
[401377372,1768167043693,-500.0,0.00016903,2]
[401377373,1768167043702,-464.0,0.00016904,2]
[401377374,1768167043711,-265.93844707,0.00016909,2]
[401377375,1768167043720,-150.0,0.0001692,2]
[401377376,1768167043729,-265.93844707,0.00016927,2]
[401377377,1768167043738,-587.0,0.00016931,2]
[401377378,1768167043748,-1000.0,0.00016945,2]
[401377379,1768167043758,-265.93844707,0.00016945,2]
[401377381,1768167043767,-200.0,0.00016958,2]
[401377382,1768167043777,-330.0939675,0.00016958,2]
[401377383,1768167043786,-265.93844707,0.00016964,2]
[401377384,1768167043795,-1382.78,0.00016968,2]
[401377385,1768167043804,-150.0,0.00016971,2]
[401377386,1768167043814,-150.0,0.00016971,2]
[401377387,1768167043823,-590.06318864,0.00016972,2]
[401377388,1768167043832,-265.93844707,0.00016982,2]
[401377389,1768167043842,-265.93844707,0.00017,2]
[401377390,1768167043851,-150.0,0.00017,2]
[401377391,1768167043860,-250.0,0.00017,2]
[401377392,1768167043870,-3556.92298458,0.00017,2]
[401377393,1768167043879,-160.0,0.00017,2]
[401377394,1768167043889,-150.0,0.00017018,2]
[401377395,1768167043898,-265.93844707,0.00017018,2]
[401377396,1768167043908,-265.93844707,0.00017036,2]
[401377397,1768167043917,-578.20924308,0.00017038,2]
[401377398,1768167043927,-998.0,0.00017038,2]
[401377399,1768167043937,-533.88981491,0.00017038,2]
[401377400,1768167043947,-500.0,0.00017038,2]
[401377401,1768167043956,-250.0,0.00017038,2]
[401377402,1768167043966,-238.92822807,0.00017038,2]
[401377403,1768167043975,-250.0,0.00017038,2]
[401377404,1768167043985,-250.0,0.00017038,2]
[401377405,1768167043994,-250.0,0.00017038,2]
[401377406,1768167044004,-250.0,0.00017038,2]
[401377407,1768167044013,-561.20369866,0.00017038,2]
[401377408,1768167044023,-982.63386351,0.00017038,2]
[401377409,1768167044033,-250.0,0.00017038,2]
[401377410,1768167044042,-250.0,0.00017038,2]
[401377411,1768167044052,-151.0,0.00017038,2]
[401377412,1768167044061,-250.0,0.00017038,2]
[401377413,1768167044071,-250.0,0.00017038,2]
[401377414,1768167044080,-250.0,0.00017038,2]
[401377415,1768167044090,-250.0,0.00017038,2]
[401377416,1768167044099,-250.0,0.00017038,2]
[401377417,1768167044109,-250.0,0.00017038,2]
[401377418,1768167044118,-250.0,0.00017038,2]
[401377419,1768167044128,-250.0,0.00017038,2]
[401377420,1768167044137,-250.0,0.00017038,2]
[401377421,1768167044147,-250.0,0.00017038,2]
[401377422,1768167044156,-620.0,0.00017038,2]
[401377423,1768167044166,-260.89005731,0.00017038,2]
[401377424,1768167044175,-670.58624095,0.00017038,2]
[401377425,1768167044184,-322.6107,0.00017038,2]
[401377426,1768167044194,-250.0,0.00017038,2]
[401377427,1768167044203,-250.0,0.00017038,2]
[401377428,1768167044212,-1000.0,0.00017038,2]
[401377429,1768167044222,-1000.0,0.00017038,2]
[401377430,1768167044231,-1000.0,0.00017038,2]
[401377431,1768167044241,-1000.0,0.00017038,2]
[401377432,1768167044250,-1000.0,0.00017038,2]
[401377433,1768167044259,-1000.0,0.00017038,2]
[401377434,1768167044269,-250.0,0.00017038,2]
[401377435,1768167044279,-151.0,0.00017038,2]
[401377436,1768167044289,-250.0,0.00017038,2]
[401377437,1768167044298,-1000.0,0.00017038,2]
[401377438,1768167044307,-250.0,0.00017038,2]
[401377439,1768167044316,-1000.0,0.00017038,2]
[401377440,1768167044325,-250.0,0.00017038,2]
[401377441,1768167044335,-1000.0,0.00017038,2]
[401377442,1768167044344,-250.0,0.00017038,2]
[401377443,1768167044353,-1000.0,0.00017038,2]
[401377444,1768167044363,-250.0,0.00017038,2]
[401377445,1768167044372,-1000.0,0.00017038,2]
[401377446,1768167044381,-250.0,0.00017038,2]
[401377447,1768167044391,-1000.0,0.00017038,2]
[401377448,1768167044400,-500.0,0.00017038,2]
[401377449,1768167044409,-250.0,0.00017038,2]
[401377450,1768167044419,-1000.0,0.00017038,2]
[401377451,1768167044428,-250.0,0.00017038,2]
[401377452,1768167044437,-500.0,0.00017038,2]
[401377453,1768167044447,-250.0,0.00017038,2]
[401377454,1768167044457,-250.0,0.00017038,2]
[401377455,1768167044466,-250.0,0.00017038,2]
[401377456,1768167044475,-834.0,0.0001704,2]
[401377457,1768167044485,-965.81,0.00017041,2]
[401377458,1768167044495,-440.38994644,0.00017052,2]
[401377459,1768167044504,-265.93844707,0.00017055,2]
[401377460,1768167044513,-16485.91631081,0.00017064,2]
[401377461,1768167044523,-15703.44932379,0.00017064,2]
[401377462,1768167044532,-50246.42022525,0.00017069,2]
[401377463,1768167044541,-500.0,0.00017072,2]
[401377464,1768167044551,-500.0,0.00017072,2]
[401377465,1768167044561,-500.0,0.00017072,2]
[401377466,1768167044571,-500.0,0.00017072,2]
[401377467,1768167044580,-500.0,0.00017072,2]
[401377468,1768167044590,-533.84953358,0.00017072,2]
[401377469,1768167044600,-2351.0,0.00017072,2]
[401377470,1768167044610,-500.73774285,0.00017073,2]
[401377472,1768167044619,-500.0,0.00017073,2]
[401377474,1768167044631,-500.0,0.00017073,2]
[401377476,1768167044640,-500.0,0.00017073,2]
[401377477,1768167044650,-500.0,0.00017073,2]
[401377478,1768167044660,-500.45639995,0.00017073,2]
[401377479,1768167044670,-500.0,0.00017073,2]
[401377480,1768167044679,-500.0,0.00017073,2]
[401377481,1768167044689,-500.0,0.00017073,2]
[401377482,1768167044699,-500.0,0.00017073,2]
[401377483,1768167044708,-500.0,0.00017073,2]
[401377484,1768167044718,-173.27685075,0.00017073,2]
[401377485,1768167044727,-500.0,0.00017073,2]
[401377486,1768167044737,-500.0,0.00017073,2]
[401377487,1768167044746,-500.0,0.00017073,2]
[401377488,1768167044756,-500.99700202,0.00017073,2]
[401377489,1768167044766,-500.0,0.00017073,2]
[401377490,1768167044775,-500.0,0.00017073,2]
[401377491,1768167044785,-646.79718152,0.00017073,2]
[401377492,1768167044794,-632.9385196,0.00017073,2]
[401377493,1768167044804,-500.0,0.00017073,2]
[401377494,1768167044814,-500.0,0.00017073,2]
[401377495,1768167044823,-368.2931148,0.00017073,2]
[401377496,1768167044832,-500.0,0.00017073,2]
[401377497,1768167044842,-500.0,0.00017073,2]
[401377498,1768167044851,-500.0,0.00017073,2]
[401377499,1768167044861,-500.0,0.00017073,2]
[401377500,1768167044870,-500.0,0.00017073,2]
[401377501,1768167044880,-500.0,0.00017073,2]
[401377502,1768167044891,-500.0,0.00017073,2]
[401377503,1768167044901,-265.93844707,0.00017073,2]
[401377504,1768167044911,-500.0,0.00017074,2]
[401377505,1768167044921,-265.93844707,0.00017091,2]
[401377506,1768167044931,-150.0,0.000171,2]
[401377507,1768167044941,-150.0,0.000171,2]
[401377508,1768167044951,-150.0,0.000171,2]
[401377509,1768167044961,-150.0,0.000171,2]
[401377510,1768167044971,-265.93844707,0.00017109,2]
[401377511,1768167044981,-1000.0,0.00017112,2]
[401377512,1768167044992,-265.93844707,0.00017127,2]
[401377513,1768167045002,-265.93844707,0.00017145,2]
[401377514,1768167045012,-590.06318863,0.00017158,2]
[401377515,1768167045021,-265.93844707,0.00017164,2]
[401377516,1768167045031,-200.0,0.00017174,2]
[401377517,1768167045041,-150.0,0.00017182,2]
[401377518,1768167045051,-265.93844707,0.00017182,2]
[401377519,1768167045061,-234.23629977,0.00017182,2]
[401377520,1768167045071,-231.90025202,0.00017182,2]
[401377521,1768167045080,-1901.78950089,0.00017182,2]
[401377522,1768167045090,-265.93844707,0.000172,2]
[401377523,1768167045099,-150.0,0.000172,2]
[401377524,1768167045109,-265.93844707,0.00017218,2]
[401377525,1768167045119,-150.0,0.00017229,2]
[401377526,1768167045128,-150.0,0.00017229,2]
[401377527,1768167045138,-265.93844707,0.00017236,2]
[401377528,1768167045148,-1382.78,0.00017242,2]
[401377529,1768167045157,-265.93844707,0.00017255,2]
[401377530,1768167045167,-28016.0,0.0001726,2]
[401377531,1768167045177,-265.93844707,0.00017273,2]
[401377532,1768167045186,-150.0,0.0001728,2]
[401377533,1768167045196,-265.93844707,0.00017291,2]
[401377534,1768167045206,-2171.6,0.00017298,2]
[401377535,1768167045215,-40100.0,0.000173,6]
[401377536,1768167045225,-265.93844707,0.00017309,2]
[401377537,1768167045235,-150.0,0.00017325,2]
[401377538,1768167045245,-265.93844707,0.00017327,2]
[401377539,1768167045255,-170.12,0.00017328,2]
[401377540,1768167045264,-16485.91631081,0.00017343,2]
[401377541,1768167045274,-15703.44932379,0.00017343,2]
[401377542,1768167045283,-590.06318863,0.00017343,2]
[401377543,1768167045293,-150.0,0.00017345,2]
[401377544,1768167045303,-265.93844707,0.00017345,2]
[401377545,1768167045312,-2111.0,0.00017353,2]
[401377546,1768167045322,-150.0,0.00017357,2]
[401377547,1768167045331,-272.27,0.00017361,2]
[401377548,1768167045340,-2171.6,0.00017362,2]
[401377549,1768167045350,-265.93844707,0.00017364,2]
[401377550,1768167045359,-2111.0,0.00017378,2]
[401377551,1768167045368,-265.93844707,0.00017382,2]
[401377552,1768167045378,-265.93844707,0.000174,2]
[401377553,1768167045387,-150.0,0.000174,2]
[401377554,1768167045396,-150.0,0.000174,2]
[401377555,1768167045406,-150.0,0.000174,2]
[401377556,1768167045415,-150.0,0.000174,2]
[401377557,1768167045425,-50100.0,0.000174,6]
[401377558,1768167045435,-265.93844707,0.00017418,2]
[401377559,1768167045445,-2171.6,0.00017426,2]
[401377560,1768167045454,-265.93844707,0.00017436,2]
[401377561,1768167045464,-2111.0,0.0001745,2]
[401377562,1768167045474,-265.93844707,0.00017455,2]
[401377563,1768167045483,-158.9254365,0.00017458,2]
[401377564,1768167045492,-150.0,0.0001746,2]
[401377565,1768167045501,-265.93844707,0.00017473,2]
[401377566,1768167045511,-440.38994644,0.00017476,2]
[401377567,1768167045520,-150.0,0.00017486,2]
[401377568,1768167045529,-150.0,0.00017486,2]
[401377569,1768167045538,-2171.6,0.00017489,2]
[401377570,1768167045548,-265.93844707,0.00017491,2]
[401377571,1768167045557,-500.0,0.00017499,2]
[401377572,1768167045567,-500.0,0.00017499,2]
[401377573,1768167045576,-2000.0,0.000175,2]
[401377574,1768167045585,-1601.60083457,0.000175,2]
[401377575,1768167045594,-10000.0,0.000175,6]
[401377576,1768167045604,-200.0,0.00017506,2]
[401377577,1768167045613,-150.0,0.00017509,2]
[401377578,1768167045624,-265.93844707,0.00017509,2]
[401377579,1768167045634,-1382.78,0.00017516,2]
[401377580,1768167045643,-2111.0,0.00017517,2]
[401377581,1768167045652,-265.93844707,0.00017527,2]
[401377582,1768167045661,-590.06318863,0.00017529,2]
[401377583,1768167045670,-211.20104298,0.00017534,2]
[401377584,1768167045679,-265.93844707,0.00017545,2]
[401377585,1768167045688,-150.0,0.0001755,2]
[401377586,1768167045698,-150.0,0.0001755,2]
[401377587,1768167045707,-2171.6,0.00017553,2]
[401377588,1768167045716,-265.93844707,0.00017564,2]
[401377589,1768167045726,-2111.0,0.00017573,2]
[401377590,1768167045735,-265.93844707,0.00017582,2]
[401377591,1768167045744,-553.64373807,0.00017586,2]
[401377592,1768167045753,-265.93844707,0.000176,2]
[401377593,1768167045762,-150.0,0.000176,2]
[401377594,1768167045771,-10000.0,0.000176,6]
[401377595,1768167045781,-2281.0,0.00017604,2]
[401377596,1768167045790,-1000.0,0.0001761,2]
[401377597,1768167045800,-150.0,0.00017614,2]
[401377598,1768167045811,-150.0,0.00017616,2]
[401377599,1768167045821,-930.0,0.00017616,2]
[401377600,1768167045831,-500.0,0.00017616,2]
[401377601,1768167045842,-150.0,0.00017616,2]
[401377602,1768167045851,-162.20729527,0.00017616,2]
[401377603,1768167045861,-150.0,0.00017616,2]
[401377604,1768167045874,-500.0,0.00017616,2]
[401377605,1768167045884,-500.0,0.00017616,2]
[401377606,1768167045895,-500.0,0.00017616,2]
[401377607,1768167045905,-2171.6,0.00017617,2]
[401377608,1768167045915,-265.93844707,0.00017618,2]
[401377609,1768167045925,-500.91201932,0.00017621,2]
[401377610,1768167045936,-500.66892907,0.00017621,2]
[401377611,1768167045948,-1000.0,0.00017621,2]
[401377612,1768167045958,-500.0,0.00017621,2]
[401377613,1768167045969,-908.10299042,0.00017621,2]
[401377614,1768167045980,-1000.0,0.00017621,2]
[401377615,1768167045990,-500.78603367,0.00017621,2]
[401377616,1768167046000,-289.55403866,0.00017621,2]
[401377617,1768167046010,-501.18596631,0.00017621,2]
[401377618,1768167046020,-500.88678731,0.00017621,2]
[401377619,1768167046029,-1001.71787449,0.00017621,2]
[401377620,1768167046039,-1000.0,0.00017621,2]
[401377621,1768167046049,-312.9434502,0.00017621,2]
[401377622,1768167046059,-414.52858729,0.00017621,2]
[401377623,1768167046068,-1000.0,0.00017621,2]
[401377625,1768167046079,-1000.0,0.00017621,2]
[401377627,1768167046089,-1000.0,0.00017621,2]
[401377629,1768167046099,-16485.91631081,0.00017621,2]
[401377631,1768167046109,-15703.44932379,0.00017621,2]
[401377632,1768167046119,-500.0,0.00017624,2]
[401377633,1768167046129,-1000.0,0.00017624,2]
[401377634,1768167046337,-265.93844707,0.00017636,2]
[401377635,1768167046360,-150.0,0.0001764,2]
[401377636,1768167046370,-1877.90563297,0.0001764,2]
[401377637,1768167046380,-265.93844707,0.00017655,2]
[401377638,1768167046389,-1000.0,0.00017655,2]
[401377639,1768167046398,-177.87,0.00017663,2]
[401377640,1768167046408,-150.0,0.00017671,2]
[401377641,1768167046418,-930.0,0.00017671,2]
[401377642,1768167046427,-500.0,0.00017671,2]
[401377643,1768167046437,-150.0,0.00017671,2]
[401377644,1768167046449,-500.0,0.00017671,2]
[401377645,1768167046459,-500.0,0.00017671,2]
[401377646,1768167046469,-500.0,0.00017671,2]
[401377647,1768167046479,-150.0,0.00017673,2]
[401377648,1768167046488,-265.93844707,0.00017673,2]
[401377649,1768167046498,-162.0,0.0001768,2]
[401377650,1768167046507,-2171.6,0.00017681,2]
[401377651,1768167046517,-265.93844707,0.00017691,2]
[401377652,1768167046527,-1000.0,0.000177,2]
[401377653,1768167046536,-780.16040122,0.000177,2]
[401377654,1768167046545,-10000.0,0.000177,6]
[401377655,1768167046555,-1000.0,0.00017709,2]
[401377656,1768167046564,-265.93844707,0.00017709,2]
[401377657,1768167046573,-590.06318863,0.00017714,2]
[401377658,1768167046583,-195.0,0.00017723,2]
[401377660,1768167046592,-930.0,0.00017726,2]
[401377662,1768167046601,-500.0,0.00017726,2]
[401377663,1768167046612,-150.0,0.00017726,2]
[401377664,1768167046622,-275.38440809,0.00017726,2]
[401377665,1768167046635,-517.05568559,0.00017726,2]
[401377666,1768167046644,-620.0,0.00017726,2]
[401377667,1768167046653,-180.172,0.00017726,2]
[401377668,1768167046662,-2201.044,0.00017726,2]
[401377669,1768167046673,-265.93844707,0.00017727,2]
[401377670,1768167046682,-330.14190427,0.00017742,2]
[401377671,1768167046692,-294.7401385,0.00017742,2]
[401377672,1768167046702,-150.0,0.00017743,2]
[401377673,1768167046712,-150.0,0.00017743,2]
[401377674,1768167046721,-2171.6,0.00017745,2]
[401377675,1768167046731,-265.93844707,0.00017745,2]
[401377676,1768167046740,-1000.0,0.00017748,2]
[401377677,1768167046749,-2281.0,0.00017749,2]
[401377678,1768167046758,-157.14731633,0.0001775,2]